lending/lending_fUSD_20240411
["ID","MTS","AMOUNT","RATE_DAILY","PERIOD"]
[322150262,1712851853903,-172.010681,0.00032877,7]
[322150263,1712851853913,-151.0,0.00032877,7]
[322150264,1712851853928,-151.0,0.00032877,7]
[322150265,1712851853939,-151.0,0.00032877,7]
[322150266,1712851853948,-261.841474,0.00032877,7]
[322150267,1712851853958,-152.179307,0.00032877,7]
[322150268,1712851853968,-151.0,0.00032877,7]
[322150269,1712851853978,-154.139342,0.00032877,7]
[322150270,1712851853987,-151.0,0.00032877,7]
[322150271,1712851853997,-151.0,0.00032877,7]
[322150272,1712851854006,-484.385904,0.00032877,7]
[322150273,1712851854016,-484.385904,0.00032877,7]
[322150274,1712851854026,-484.385904,0.00032877,7]
[322150275,1712851854035,-484.385904,0.00032877,7]
[322150276,1712851854044,-153.30329,0.00032877,7]
[322150277,1712851854054,-356.707078,0.00032877,7]
[322150278,1712851854063,-356.707078,0.00032877,7]
[322150279,1712851854072,-356.707078,0.00032877,7]
[322150280,1712851854082,-356.707078,0.00032877,7]
[322150281,1712851854093,-244.646615,0.00032877,7]
[322150282,1712851854109,-151.0,0.00032877,7]
[322150283,1712851854119,-151.0,0.00032877,7]
[322150284,1712851854127,-151.0,0.00032877,2]
[322150285,1712851854137,-151.0,0.00032877,2]
[322150286,1712851854146,-151.0,0.00032877,7]
[322150287,1712851854155,-155.518848,0.00032877,7]
[322150288,1712851854164,-151.0,0.00032877,7]
[322150289,1712851854174,-161.211378,0.00032877,7]
[322150290,1712851854185,-151.0,0.00032877,7]
[322150291,1712851854194,-202.708837,0.00032877,7]
[322150292,1712851854205,-151.0,0.00032877,7]
[322150293,1712851854214,-151.0,0.00032877,7]
[322150294,1712851854225,-151.0,0.00032877,7]
[322150295,1712851854235,-151.0,0.00032877,7]
[322150296,1712851854244,-151.0,0.00032877,7]
[322150297,1712851854253,-152.231429,0.00032877,7]
[322150298,1712851854263,-389.53,0.00032877,2]
[322150299,1712851854273,-6000.0,0.000329,4]
[322150300,1712851854282,-1000.0,0.00033,2]
[322150301,1712851854291,-2000.0,0.00033,4]
[322150302,1712851854300,-5053.56121593,0.00033,30]
[322150303,1712851854310,-850.0,0.00033,3]
[322150304,1712851854319,-151.0,0.00033,7]
[322150305,1712851854329,-151.0,0.00033,7]
[322150306,1712851854338,-6303.12057839,0.00033097,5]
[322150307,1712851854347,-154.26842213,0.00033098,7]
[322150308,1712851854357,-377.2,0.00033138,2]
[322150309,1712851854366,-211.42,0.00033165,2]
[322150310,1712851854375,-150.0,0.00033234,2]
[322150311,1712851854389,-155.25173831,0.00033329,7]
[322150312,1712851854399,-861.66948879,0.00033364,2]
[322150313,1712851854408,-200.0,0.00033379,10]
[322150314,1712851854418,-1000.0,0.00033379,10]
[322150315,1712851854427,-200.0,0.00033379,10]
[322150316,1712851854436,-178.18,0.000334,2]
[322150317,1712851854445,-284.771409,0.000334,3]
[322150318,1712851854455,-166.46136059,0.00033424,2]
[322150319,1712851854464,-201.83812299,0.00033424,7]
[322150320,1712851854474,-500.0,0.00033424,7]
[322150321,1712851854483,-768.96,0.00033424,7]
[322150322,1712851854493,-500.0,0.00033424,7]
[322150323,1712851854502,-500.0,0.00033424,7]
[322150324,1712851854512,-153.36721441,0.00033424,7]
[322150325,1712851854522,-500.0,0.00033424,7]
[322150326,1712851854532,-500.0,0.00033424,7]
[322150327,1712851854543,-500.0,0.00033424,7]
[322150328,1712851854552,-500.0,0.00033424,7]
[322150329,1712851854562,-500.0,0.00033424,7]
[322150330,1712851854573,-500.0,0.00033424,7]
[322150331,1712851854583,-500.0,0.00033424,7]
[322150332,1712851854594,-500.0,0.00033424,7]
[322150333,1712851854604,-500.0,0.00033424,5]
[322150334,1712851854613,-500.0,0.00033424,7]
[322150335,1712851854623,-500.0,0.00033424,7]
[322150336,1712851854636,-532.1,0.00033424,7]
[322150337,1712851854647,-500.0,0.00033424,7]
[322150338,1712851854661,-582.14,0.00033424,7]
[322150339,1712851854671,-500.0,0.00033424,7]
[322150340,1712851854681,-500.0,0.00033424,7]
[322150341,1712851854691,-500.0,0.00033424,7]
[322150342,1712851854702,-500.0,0.00033424,7]
[322150343,1712851854712,-500.0,0.00033424,7]
[322150344,1712851854721,-500.0,0.00033424,7]
[322150345,1712851854731,-408.07239987,0.00033424,7]
[322150346,1712851854740,-500.0,0.00033424,7]
[322150347,1712851854750,-505.21726644,0.00033424,7]
[322150348,1712851854759,-500.0,0.00033424,7]
[322150349,1712851854769,-223.81257024,0.00033424,7]
[322150350,1712851854778,-500.0,0.00033424,7]
[322150351,1712851854788,-500.0,0.00033424,7]
[322150352,1712851854799,-501.34,0.00033424,7]
[322150353,1712851854811,-500.0,0.00033424,7]
[322150354,1712851854821,-500.0,0.00033424,7]
[322150355,1712851854831,-500.0,0.00033424,7]
[322150356,1712851854841,-500.0,0.00033424,7]
[322150357,1712851854851,-500.0,0.00033424,7]
[322150358,1712851854860,-1245.05,0.00033424,7]
[322150359,1712851854871,-500.0,0.00033424,7]
[322150360,1712851854881,-500.0,0.00033424,7]
[322150361,1712851854891,-627.1,0.00033424,7]
[322150362,1712851854900,-500.0,0.00033424,7]
[322150363,1712851854910,-500.0,0.00033424,7]
[322150364,1712851854920,-210.82717613,0.00033424,7]
[322150365,1712851854929,-539.89,0.00033424,7]
[322150366,1712851854939,-500.0,0.00033424,2]
[322150367,1712851854949,-500.0,0.00033424,7]
[322150368,1712851854959,-500.0,0.00033424,7]
[322150369,1712851854969,-500.0,0.00033424,7]
[322150370,1712851854979,-500.0,0.00033424,7]
[322150371,1712851854989,-500.0,0.00033424,7]
[322150372,1712851854998,-1083.57,0.00033424,7]
[322150373,1712851855009,-500.0,0.00033424,7]
[322150374,1712851855018,-500.0,0.00033424,7]
[322150375,1712851855028,-500.0,0.00033424,7]
[322150376,1712851855038,-222.820456,0.00033424,7]
[322150377,1712851855047,-551.60026002,0.00033424,7]
[322150378,1712851855057,-151.0,0.00033424,7]
[322150379,1712851855069,-151.0,0.00033424,7]
[322150380,1712851855079,-558.46,0.00033424,7]
[322150381,1712851855089,-541.62,0.00033424,7]
[322150382,1712851855103,-500.0,0.00033424,7]
[322150383,1712851855112,-500.0,0.00033424,7]
[322150384,1712851855124,-500.0,0.00033424,7]
[322150385,1712851855136,-500.0,0.00033424,7]
[322150386,1712851855145,-500.0,0.00033424,7]
[322150387,1712851855154,-500.0,0.00033424,7]
[322150388,1712851855165,-503.76,0.00033424,7]
[322150389,1712851855178,-500.0,0.00033424,7]
[322150390,1712851855188,-500.0,0.00033424,7]
[322150391,1712851855201,-500.0,0.00033424,7]
[322150392,1712851855211,-500.0,0.00033424,7]
[322150393,1712851855222,-545.63,0.00033424,7]
[322150394,1712851855232,-500.0,0.00033424,7]
[322150395,1712851855243,-714.85,0.00033424,7]
[322150396,1712851855254,-1246.36,0.00033424,7]
[322150397,1712851855266,-151.0,0.00033424,7]
[322150398,1712851855275,-151.0,0.00033424,7]
[322150399,1712851855285,-500.0,0.00033424,7]
[322150400,1712851855294,-515.58,0.00033424,7]
[322150401,1712851855304,-500.0,0.00033424,7]
[322150402,1712851855314,-500.0,0.00033424,7]
[322150403,1712851855324,-500.0,0.00033424,7]
[322150404,1712851855333,-500.0,0.00033424,7]
[322150405,1712851855343,-500.0,0.00033424,7]
[322150406,1712851855352,-644.06,0.00033424,7]
[322150407,1712851855362,-1061.43,0.00033424,7]
[322150408,1712851855371,-500.0,0.00033424,7]
[322150409,1712851855382,-656.63,0.00033424,7]
[322150410,1712851855391,-152.450807,0.00033424,7]
[322150411,1712851855401,-500.0,0.00033424,7]
[322150412,1712851855410,-500.0,0.00033424,7]
[322150413,1712851855419,-500.0,0.00033424,7]
[322150414,1712851855429,-500.0,0.00033424,7]
[322150415,1712851855438,-500.0,0.00033424,7]
[322150416,1712851855447,-500.0,0.00033424,7]
[322150417,1712851855457,-500.0,0.00033424,7]
[322150418,1712851855467,-918.18,0.00033424,7]
[322150419,1712851855477,-500.0,0.00033424,7]
[322150420,1712851855487,-175.70260221,0.00033424,7]
[322150421,1712851855497,-500.0,0.00033424,7]
[322150422,1712851855506,-500.0,0.00033424,7]
[322150423,1712851855516,-1105.32,0.00033424,7]
[322150424,1712851855526,-500.0,0.00033424,7]
[322150425,1712851855536,-151.0,0.00033424,7]
[322150426,1712851855546,-623.40103296,0.00033424,7]
[322150427,1712851855557,-151.0,0.00033424,7]
[322150428,1712851855567,-500.0,0.00033424,7]
[322150429,1712851855577,-500.0,0.00033424,7]
[322150430,1712851855588,-151.0,0.00033424,7]
[322150431,1712851855597,-292.204775,0.00033424,7]
[322150432,1712851855607,-500.0,0.00033424,7]
[322150433,1712851855617,-500.0,0.00033424,7]
[322150434,1712851855628,-500.0,0.00033424,7]
[322150435,1712851855640,-500.0,0.00033424,7]
[322150436,1712851855650,-500.0,0.00033424,7]
[322150437,1712851855659,-500.0,0.00033424,7]
[322150438,1712851855670,-500.0,0.00033424,7]
[322150439,1712851855680,-500.0,0.00033424,7]
[322150440,1712851855690,-500.0,0.00033424,7]
[322150441,1712851855699,-500.0,0.00033424,7]
[322150442,1712851855709,-507.29,0.00033424,7]
[322150443,1712851855719,-542.47273231,0.00033424,7]
[322150444,1712851855729,-500.0,0.00033424,7]
[322150445,1712851855738,-516.08,0.00033424,7]
[322150446,1712851855748,-500.0,0.00033424,7]
[322150447,1712851855758,-506.37,0.00033424,7]
[322150448,1712851855767,-912.25,0.00033424,7]
[322150449,1712851855776,-500.0,0.00033424,7]
[322150450,1712851855786,-500.0,0.00033424,7]
[322150451,1712851855796,-500.0,0.00033424,7]
[322150452,1712851855805,-500.0,0.00033424,7]
[322150453,1712851855815,-160.718159,0.00033424,7]
[322150454,1712851855825,-500.0,0.00033424,7]
[322150455,1712851855835,-500.0,0.00033424,7]
[322150456,1712851855845,-500.0,0.00033424,7]
[322150457,1712851855855,-500.0,0.00033424,7]
[322150458,1712851855865,-500.0,0.00033424,7]
[322150459,1712851855875,-500.0,0.00033424,7]
[322150460,1712851855885,-500.0,0.00033424,7]
[322150461,1712851855895,-151.0,0.00033424,7]
[322150462,1712851855905,-151.0,0.00033424,7]
[322150463,1712851855915,-500.0,0.00033424,7]
[322150464,1712851855925,-500.0,0.00033424,7]
[322150465,1712851855934,-633.35,0.00033424,7]
[322150466,1712851855945,-500.0,0.00033424,7]
[322150467,1712851855954,-500.0,0.00033424,7]
[322150468,1712851855964,-500.0,0.00033424,7]
[322150469,1712851855974,-500.0,0.00033424,7]
[322150470,1712851855984,-500.0,0.00033424,7]
[322150471,1712851855994,-634.61,0.00033424,7]
[322150472,1712851856004,-500.0,0.00033424,7]
[322150473,1712851856014,-500.0,0.00033424,2]
[322150474,1712851856024,-500.0,0.00033424,7]
[322150475,1712851856034,-500.0,0.00033424,7]
[322150476,1712851856043,-500.0,0.00033424,7]
[322150477,1712851856053,-500.0,0.00033424,7]
[322150478,1712851856062,-500.0,0.00033424,7]
[322150479,1712851856072,-614.53,0.00033424,7]
[322150480,1712851856082,-500.0,0.00033424,7]
[322150481,1712851856091,-500.0,0.00033424,7]
[322150482,1712851856105,-500.0,0.00033424,7]
[322150483,1712851856115,-698.83,0.00033424,7]
[322150484,1712851856124,-500.0,0.00033424,7]
[322150485,1712851856135,-689.08,0.00033424,7]
[322150486,1712851856146,-500.0,0.00033424,7]
[322150487,1712851856156,-500.0,0.00033424,7]
[322150488,1712851856166,-500.0,0.00033424,7]
[322150489,1712851856176,-771.01,0.00033424,7]
[322150490,1712851856186,-876.39,0.00033424,7]
[322150491,1712851856197,-586.31,0.00033424,7]
[322150492,1712851856207,-151.0,0.00033424,7]
[322150493,1712851856216,-151.0,0.00033424,7]
[322150494,1712851856226,-1923.25,0.00033424,7]
[322150495,1712851856235,-500.0,0.00033424,7]
[322150496,1712851856245,-605.24,0.00033424,7]
[322150497,1712851856255,-553.83584556,0.00033424,7]
[322150498,1712851856264,-500.0,0.00033424,7]
[322150499,1712851856274,-500.0,0.00033424,7]
[322150500,1712851856283,-500.0,0.00033424,7]
[322150501,1712851856293,-500.0,0.00033424,7]
[322150502,1712851856303,-500.0,0.00033424,7]
[322150503,1712851856312,-500.0,0.00033424,7]
[322150504,1712851856322,-500.0,0.00033424,7]
[322150505,1712851856331,-500.0,0.00033424,7]
[322150506,1712851856341,-596.68,0.00033424,7]
[322150507,1712851856350,-500.0,0.00033424,7]
[322150508,1712851856360,-500.0,0.00033424,7]
[322150509,1712851856370,-500.0,0.00033424,7]
[322150510,1712851856379,-395.51262884,0.00033424,7]
[322150511,1712851856390,-500.0,0.00033424,7]
[322150512,1712851856399,-1358.89,0.00033424,7]
[322150513,1712851856409,-500.0,0.00033424,7]
[322150514,1712851856418,-500.0,0.00033424,7]
[322150515,1712851856427,-1260.69,0.00033424,7]
[322150516,1712851856437,-500.0,0.00033424,7]
[322150517,1712851856446,-571.75,0.00033424,7]
[322150518,1712851856455,-500.0,0.00033424,7]
[322150519,1712851856466,-500.0,0.00033424,7]
[322150520,1712851856476,-500.0,0.00033424,7]
[322150521,1712851856486,-500.0,0.00033424,7]
[322150522,1712851856495,-827.99,0.00033424,7]
[322150523,1712851856505,-438.71961049,0.00033424,7]
[322150524,1712851856514,-500.0,0.00033424,7]
[322150525,1712851856523,-687.16,0.00033424,7]
[322150526,1712851856532,-151.0,0.00033424,7]
[322150527,1712851856542,-500.0,0.00033424,2]
[322150528,1712851856551,-151.0,0.00033424,7]
[322150529,1712851856561,-1088.21,0.00033424,7]
[322150530,1712851856571,-1893.77,0.00033424,7]
[322150531,1712851856580,-500.0,0.00033424,7]
[322150532,1712851856590,-541.21,0.00033424,7]
[322150533,1712851856600,-1337.06,0.00033424,7]
[322150534,1712851856610,-657.71,0.00033424,7]
[322150535,1712851856620,-500.0,0.00033424,7]
[322150536,1712851856631,-990.66,0.00033424,7]
[322150537,1712851856641,-849.33,0.00033424,7]
[322150538,1712851856651,-1045.52,0.00033424,7]
[322150539,1712851856661,-509.25,0.00033424,7]
[322150540,1712851856671,-500.0,0.00033424,7]
[322150541,1712851856681,-500.0,0.00033424,7]
[322150542,1712851856691,-1428.54,0.00033424,7]
[322150543,1712851856701,-564.72,0.00033424,7]
[322150544,1712851856710,-816.01,0.00033424,7]
[322150545,1712851856721,-619.95,0.00033424,7]
[322150546,1712851856731,-500.0,0.00033424,7]
[322150547,1712851856742,-880.61,0.00033424,7]
[322150548,1712851856753,-700.04,0.00033424,7]
[322150549,1712851856762,-1442.35,0.00033424,7]
[322150550,1712851856772,-500.0,0.00033424,7]
[322150551,1712851856781,-530.74,0.00033424,7]
[322150552,1712851856792,-151.0,0.00033424,7]
[322150553,1712851856802,-151.0,0.00033424,7]
[322150554,1712851856812,-2238.81,0.00033424,7]
[322150555,1712851856822,-500.0,0.00033424,7]
[322150556,1712851856832,-500.0,0.00033424,7]
[322150557,1712851856842,-731.62,0.00033424,7]
[322150558,1712851856853,-151.0,0.00033424,7]
[322150559,1712851856864,-151.0,0.00033424,7]
[322150560,1712851856876,-383.23948722,0.00033424,7]
[322150561,1712851856890,-1140.62,0.00033424,7]
[322150562,1712851856900,-1334.41,0.00033424,7]
[322150563,1712851856909,-500.0,0.00033424,7]
[322150564,1712851856920,-500.0,0.00033424,7]
[322150565,1712851856930,-151.0,0.00033424,7]
[322150566,1712851856940,-151.0,0.00033424,7]
[322150567,1712851857137,-500.0,0.00033424,7]
[322150568,1712851857148,-1140.14,0.00033424,7]
[322150569,1712851857157,-1139.19,0.00033424,7]
[322150570,1712851857167,-151.0,0.00033424,7]
[322150571,1712851857179,-2293.2,0.00033424,7]
[322150572,1712851857189,-151.0,0.00033424,7]
[322150573,1712851857198,-685.6,0.00033424,7]
[322150574,1712851857207,-500.0,0.00033424,7]
[322150575,1712851857216,-500.0,0.00033424,7]
[322150576,1712851857225,-847.34,0.00033424,7]
[322150577,1712851857234,-151.0,0.00033424,7]
[322150578,1712851857244,-151.0,0.00033424,7]
[322150579,1712851857253,-1102.15,0.00033424,7]
[322150580,1712851857263,-385.60634,0.00033424,7]
[322150581,1712851857273,-385.60634,0.00033424,7]
[322150582,1712851857282,-825.78,0.00033424,7]
[322150583,1712851857291,-1014.1,0.00033424,7]
[322150584,1712851857300,-385.60634,0.00033424,7]
[322150585,1712851857309,-385.60634,0.00033424,7]
[322150586,1712851857318,-516.03,0.00033424,7]
[322150587,1712851857328,-503.43488777,0.00033424,7]
[322150588,1712851857337,-590.05234483,0.00033424,7]
[322150589,1712851857346,-500.0,0.00033424,7]
[322150590,1712851857356,-1758.38,0.00033424,7]
[322150591,1712851857365,-500.0,0.00033424,7]
[322150592,1712851857374,-793.93,0.00033424,7]
[322150593,1712851857384,-500.0,0.00033424,7]
[322150594,1712851857394,-500.0,0.00033424,7]
[322150595,1712851857403,-1167.96,0.00033424,7]
[322150596,1712851857413,-626.16,0.00033424,7]
[322150597,1712851857423,-500.0,0.00033424,7]
[322150598,1712851857432,-945.2,0.00033424,7]
[322150599,1712851857442,-2071.46,0.00033424,7]
[322150600,1712851857452,-703.14,0.00033424,7]
[322150601,1712851857462,-500.0,0.00033424,7]
[322150602,1712851857472,-846.95,0.00033424,7]
[322150603,1712851857481,-563.66,0.00033424,7]
[322150604,1712851857490,-1016.58,0.00033424,7]
[322150605,1712851857500,-500.0,0.00033424,7]
[322150606,1712851857510,-500.0,0.00033424,7]
[322150607,1712851857519,-151.0,0.00033424,7]
[322150608,1712851857530,-151.0,0.00033424,7]
[322150609,1712851857540,-3135.53,0.00033424,7]
[322150610,1712851857550,-500.0,0.00033424,7]
[322150611,1712851857559,-151.0,0.00033424,7]
[322150612,1712851857570,-151.0,0.00033424,7]
[322150613,1712851857579,-1715.83,0.00033424,7]
[322150614,1712851857589,-500.0,0.00033424,7]
[322150615,1712851857600,-500.0,0.00033424,7]
[322150616,1712851857610,-500.0,0.00033424,7]
[322150617,1712851857620,-500.0,0.00033424,7]
[322150618,1712851857632,-500.0,0.00033424,7]
[322150619,1712851857641,-500.0,0.00033424,7]
[322150620,1712851857650,-803.7,0.00033424,7]
[322150621,1712851857659,-500.0,0.00033424,7]
[322150622,1712851857670,-500.0,0.00033424,7]
[322150623,1712851857679,-936.04,0.00033424,7]
[322150624,1712851857691,-2006.4,0.00033424,7]
[322150625,1712851857703,-500.0,0.00033424,7]
[322150626,1712851857712,-500.0,0.00033424,7]
[322150627,1712851857722,-684.97,0.00033424,7]
[322150628,1712851857731,-1636.86,0.00033424,7]
[322150629,1712851857740,-1601.54,0.00033424,7]
[322150630,1712851857750,-756.16,0.00033424,7]
[322150631,1712851857760,-500.0,0.00033424,7]
[322150632,1712851857769,-500.0,0.00033424,7]
[322150633,1712851857779,-500.0,0.00033424,7]
[322150634,1712851857789,-500.0,0.00033424,7]
[322150635,1712851857799,-1972.18,0.00033424,7]
[322150636,1712851857808,-1379.49,0.00033424,7]
[322150637,1712851857818,-1661.92,0.00033424,7]
[322150638,1712851857827,-500.0,0.00033424,7]
[322150639,1712851857836,-500.0,0.00033424,7]
[322150640,1712851857845,-500.0,0.00033424,7]
[322150641,1712851857855,-620.12,0.00033424,7]
[322150642,1712851857864,-500.0,0.00033424,7]
[322150643,1712851857874,-151.0,0.00033424,7]
[322150644,1712851857885,-500.0,0.00033424,7]
[322150645,1712851857894,-500.0,0.00033424,7]
[322150646,1712851857904,-151.0,0.00033424,7]
[322150647,1712851857913,-803.87,0.00033424,7]
[322150648,1712851857922,-2273.9,0.00033424,7]
[322150649,1712851857932,-500.0,0.00033424,7]
[322150650,1712851857941,-545.93239807,0.00033424,7]
[322150651,1712851857950,-2334.12,0.00033424,7]
[322150652,1712851857959,-500.0,0.00033424,7]
[322150653,1712851857970,-500.0,0.00033424,7]
[322150654,1712851857980,-382.16187162,0.00033424,7]
[322150655,1712851857989,-500.0,0.00033424,7]
[322150656,1712851857998,-2228.59,0.00033424,7]
[322150657,1712851858007,-500.0,0.00033424,7]
[322150658,1712851858017,-793.1,0.00033424,7]
[322150659,1712851858026,-840.39,0.00033424,7]
[322150660,1712851858036,-554.24,0.00033424,7]
[322150661,1712851858046,-573.59,0.00033424,7]
[322150662,1712851858055,-500.0,0.00033424,7]
[322150663,1712851858065,-500.0,0.00033424,7]
[322150664,1712851858074,-500.0,0.00033424,7]
[322150665,1712851858085,-269.28262,0.00033424,7]
[322150666,1712851858098,-1137.26,0.00033424,7]
[322150667,1712851858107,-178.374018,0.00033424,7]
[322150668,1712851858117,-2239.11,0.00033424,7]
[322150669,1712851858126,-500.0,0.00033424,7]
[322150670,1712851858139,-500.0,0.00033424,7]
[322150671,1712851858149,-500.0,0.00033424,7]
[322150672,1712851858158,-2017.61,0.00033424,7]
[322150673,1712851858169,-500.0,0.00033424,7]
[322150674,1712851858182,-793.09,0.00033424,7]
[322150675,1712851858193,-1243.59,0.00033424,7]
[322150676,1712851858202,-1042.88,0.00033424,7]
[322150677,1712851858212,-500.0,0.00033424,7]
[322150678,1712851858224,-500.0,0.00033424,7]
[322150679,1712851858234,-1883.62,0.00033424,7]
[322150680,1712851858243,-500.0,0.00033424,7]
[322150681,1712851858253,-733.53,0.00033424,7]
[322150682,1712851858262,-500.0,0.00033424,7]
[322150683,1712851858272,-528.39,0.00033424,7]
[322150684,1712851858283,-233.207918,0.00033424,7]
[322150685,1712851858292,-233.207918,0.00033424,7]
[322150686,1712851858302,-729.73,0.00033424,7]
[322150687,1712851858311,-500.0,0.00033424,7]
[322150688,1712851858321,-633.2,0.00033424,7]
[322150689,1712851858331,-545.9,0.00033424,7]
[322150690,1712851858341,-500.0,0.00033424,7]
[322150691,1712851858351,-500.0,0.00033424,7]
[322150692,1712851858360,-500.0,0.00033424,7]
[322150693,1712851858371,-500.0,0.00033424,7]
[322150694,1712851858380,-1136.53,0.00033424,7]
[322150695,1712851858389,-705.27,0.00033424,7]
[322150696,1712851858400,-500.0,0.00033424,7]
[322150697,1712851858411,-500.0,0.00033424,7]
[322150698,1712851858422,-233.207918,0.00033424,7]
[322150699,1712851858431,-233.207918,0.00033424,7]
[322150700,1712851858442,-253.390477,0.00033424,7]
[322150701,1712851858485,-246.609523,0.00033424,7]
[322150702,1712851858496,-500.0,0.00033424,7]
[322150703,1712851858505,-586.42,0.00033424,7]
[322150704,1712851858516,-589.27,0.00033424,7]
[322150705,1712851858527,-1297.43,0.00033424,7]
[322150706,1712851858539,-2263.52,0.00033424,7]
[322150707,1712851858548,-1192.9,0.00033424,7]
[322150708,1712851858558,-500.0,0.00033424,7]
[322150709,1712851858568,-500.0,0.00033424,7]
[322150710,1712851858577,-500.0,0.00033424,7]
[322150711,1712851858588,-500.0,0.00033424,7]
[322150712,1712851858597,-442.59651632,0.00033424,7]
[322150713,1712851858606,-2795.72,0.00033424,7]
[322150714,1712851858615,-851.24,0.00033424,7]
[322150715,1712851858625,-500.0,0.00033424,7]
[322150716,1712851858636,-1573.16,0.00033424,7]
[322150717,1712851858645,-1137.86,0.00033424,7]
[322150718,1712851858653,-1344.27,0.00033424,7]
[322150719,1712851858664,-500.0,0.00033424,7]
[322150720,1712851858674,-500.0,0.00033424,7]
[322150721,1712851858683,-500.0,0.00033424,7]
[322150722,1712851858692,-1587.45,0.00033424,7]
[322150723,1712851858701,-151.0,0.00033424,7]
[322150724,1712851858710,-500.0,0.00033424,7]
[322150725,1712851858721,-151.0,0.00033424,7]
[322150726,1712851858730,-500.0,0.00033424,7]
[322150727,1712851858740,-590.2,0.00033424,7]
[322150728,1712851858751,-151.0,0.00033424,7]
[322150729,1712851858760,-151.0,0.00033424,7]
[322150730,1712851858769,-1467.86,0.00033424,7]
[322150731,1712851858779,-500.0,0.00033424,7]
[322150732,1712851858788,-151.0,0.00033424,7]
[322150733,1712851858798,-151.0,0.00033424,7]
[322150734,1712851858807,-791.04,0.00033424,7]
[322150735,1712851858818,-500.0,0.00033424,7]
[322150736,1712851858828,-500.0,0.00033424,7]
[322150737,1712851858838,-500.0,0.00033424,7]
[322150738,1712851858849,-500.0,0.00033424,7]
[322150739,1712851858859,-1446.28,0.00033424,7]
[322150740,1712851858868,-500.0,0.00033424,7]
[322150741,1712851858878,-151.0,0.00033424,7]
[322150742,1712851858889,-151.0,0.00033424,7]
[322150743,1712851858900,-1046.25,0.00033424,7]
[322150744,1712851858910,-500.0,0.00033424,7]
[322150745,1712851858920,-500.0,0.00033424,7]
[322150746,1712851858929,-500.0,0.00033424,7]
[322150747,1712851858939,-500.0,0.00033424,2]
[322150748,1712851858949,-500.0,0.00033424,7]
[322150749,1712851858959,-1352.87,0.00033424,7]
[322150750,1712851858970,-500.0,0.00033424,7]
[322150751,1712851858980,-500.0,0.00033424,7]
[322150752,1712851858989,-753.64,0.00033424,7]
[322150753,1712851858999,-500.0,0.00033424,7]
[322150754,1712851859008,-500.0,0.00033424,7]
[322150755,1712851859018,-673.31,0.00033424,7]
[322150756,1712851859029,-500.0,0.00033424,7]
[322150757,1712851859038,-500.0,0.00033424,7]
[322150758,1712851859048,-500.0,0.00033424,7]
[322150759,1712851859057,-500.0,0.00033424,7]
[322150760,1712851859066,-500.0,0.00033424,7]
[322150761,1712851859076,-500.0,0.00033424,7]